[Event "*** Titled Tuesday 3|2 Blitz"]
[Site "Chess.com"]
[Date "2016.07.05"]
[Round "5"]
[White "SavelijTartakover"]
[Black "mortalbovine"]
[Result "1-0"]
[WhiteElo "2514"]
[BlackElo "1674"]
[TimeControl "180+2"]
[EndTime "11:57:25 PDT"]
[Termination "SavelijTartakover won by checkmate"]

1. d4 {[%clk 0:03:01.9]} 1... d5 {[%clk 0:02:59.9]} 2. c4 {[%clk 0:03:02.1]}
2... e5 {[%clk 0:03:00.4]} 3. dxe5 {[%clk 0:03:02.1]} 3... d4 {[%clk 0:03:02.3]}
4. e4 {[%clk 0:03:02.7]} 4... dxe3 {[%clk 0:02:50.1]} 5. Qxd8+ {[%clk
0:03:01.5]} 5... Kxd8 {[%clk 0:02:50.8]} 6. Bxe3 {[%clk 0:03:03]} 6... Bb4+
{[%clk 0:02:48.1]} 7. Nc3 {[%clk 0:03:01.3]} 7... Bxc3+ {[%clk 0:02:46.6]} 8.
bxc3 {[%clk 0:03:00.6]} 8... Nc6 {[%clk 0:02:47.4]} 9. O-O-O+ {[%clk 0:02:58.8]}
9... Ke8 {[%clk 0:02:43.4]} 10. f4 {[%clk 0:02:56.7]} 10... Bf5 {[%clk
0:02:42.7]} 11. Nf3 {[%clk 0:02:54.7]} 11... Rd8 {[%clk 0:02:38.8]} 12. Rxd8+
{[%clk 0:02:49.2]} 12... Kxd8 {[%clk 0:02:40.3]} 13. Nd4 {[%clk 0:02:49.4]}
13... Nxd4 {[%clk 0:02:34]} 14. cxd4 {[%clk 0:02:49.6]} 14... Ne7 {[%clk
0:02:30.1]} 15. Be2 {[%clk 0:02:49.9]} 15... Be4 {[%clk 0:02:26.4]} 16. d5
{[%clk 0:02:49.4]} 16... Nf5 {[%clk 0:02:24.4]} 17. Bxa7 {[%clk 0:02:43.6]}
17... b6 {[%clk 0:02:19.9]} 18. c5 {[%clk 0:02:44]} 18... bxc5 {[%clk
0:02:15.7]} 19. Bxc5 {[%clk 0:02:41.5]} 19... Bxg2 {[%clk 0:02:15.8]} 20. Rd1
{[%clk 0:02:41.6]} 20... Kc8 {[%clk 0:01:58.8]} 21. Ba6+ {[%clk 0:02:38.8]}
21... Kd7 {[%clk 0:01:50.5]} 22. Bb5+ {[%clk 0:02:38.2]} 22... Kc8 {[%clk
0:01:51.4]} 23. d6 {[%clk 0:02:39.2]} 23... c6 {[%clk 0:01:45.1]} 24. Bd3 {[%clk
0:02:36.2]} 24... g6 {[%clk 0:01:34.6]} 25. Rd2 {[%clk 0:02:35.1]} 25... Bd5
{[%clk 0:01:30.6]} 26. Rb2 {[%clk 0:02:34.4]} 26... Ng7 {[%clk 0:01:19.8]} 27.
Ba6+ {[%clk 0:02:32.2]} 27... Kd7 {[%clk 0:01:20.2]} 28. Rb7+ {[%clk 0:02:31.9]}
28... Ke6 {[%clk 0:01:20.7]} 29. Bd3 {[%clk 0:02:32.4]} 29... Ra8 {[%clk
0:01:14.3]} 30. Re7# {[%clk 0:02:32.1]} 1-0

[Event "*** Titled Tuesday 3|2 Blitz"]
[Site "Chess.com"]
[Date "2016.07.05"]
[Round "5"]
[White "akinov-akinseye"]
[Black "Makalexa"]
[Result "0-1"]
[WhiteElo "1827"]
[BlackElo "2182"]
[TimeControl "180+2"]
[EndTime "11:57:42 PDT"]
[Termination "Makalexa won by resignation"]

1. d4 {[%clk 0:03:01.9]} 1... Nf6 {[%clk 0:02:59.8]} 2. Nf3 {[%clk 0:03:01.9]}
2... g6 {[%clk 0:02:57.9]} 3. e3 {[%clk 0:02:59.8]} 3... Bg7 {[%clk 0:02:55.4]}
4. Bd3 {[%clk 0:02:47.3]} 4... d5 {[%clk 0:02:52.4]} 5. O-O {[%clk 0:02:48.1]}
5... O-O {[%clk 0:02:52.3]} 6. b3 {[%clk 0:02:48.8]} 6... Ne4 {[%clk 0:02:48.5]}
7. Bb2 {[%clk 0:02:49.3]} 7... f5 {[%clk 0:02:48]} 8. Nbd2 {[%clk 0:02:48.8]}
8... c5 {[%clk 0:02:48]} 9. Ne5 {[%clk 0:02:47.3]} 9... Nc6 {[%clk 0:02:44.1]}
10. f4 {[%clk 0:02:46.5]} 10... Bxe5 {[%clk 0:02:39.4]} 11. fxe5 {[%clk
0:02:42.9]} 11... Be6 {[%clk 0:02:31.1]} 12. a3 {[%clk 0:02:41.6]} 12... Qb6
{[%clk 0:02:21.1]} 13. Rb1 {[%clk 0:02:38.8]} 13... cxd4 {[%clk 0:02:21.1]} 14.
exd4 {[%clk 0:02:39.5]} 14... Nxd4 {[%clk 0:02:20.7]} 15. Bxe4 {[%clk
0:02:36.6]} 15... dxe4 {[%clk 0:01:56.8]} 16. Kh1 {[%clk 0:02:34.4]} 16... Rad8
{[%clk 0:01:55.8]} 17. Bxd4 {[%clk 0:02:22.5]} 17... Qxd4 {[%clk 0:01:50.8]} 18.
Nc4 {[%clk 0:02:10.3]} 18... Bxc4 {[%clk 0:01:45.6]} 19. Qxd4 {[%clk 0:02:11]}
19... Rxd4 {[%clk 0:01:45.6]} 20. bxc4 {[%clk 0:02:12.1]} 20... Rb8 {[%clk
0:01:39.8]} 21. c5 {[%clk 0:02:12.5]} 21... Rc4 {[%clk 0:01:39.1]} 22. Rb5
{[%clk 0:02:10.3]} 22... a6 {[%clk 0:01:34.8]} 23. Rb4 {[%clk 0:02:06.7]} 23...
Rxc5 {[%clk 0:01:34.1]} 24. c4 {[%clk 0:02:07.9]} 24... Rxe5 {[%clk 0:01:32.2]}
25. Rfb1 {[%clk 0:02:08.4]} 25... b5 {[%clk 0:01:30.6]} 26. cxb5 {[%clk
0:02:08.6]} 26... Rexb5 {[%clk 0:01:27.7]} 0-1

[Event "*** Titled Tuesday 3|2 Blitz"]
[Site "Chess.com"]
[Date "2016.07.05"]
[Round "5"]
[White "tigra"]
[Black "MaestroASK"]
[Result "1-0"]
[WhiteElo "2441"]
[BlackElo "2468"]
[TimeControl "180+2"]
[EndTime "11:57:44 PDT"]
[Termination "tigra won by resignation"]

1. e4 {[%clk 0:03:01.9]} 1... d6 {[%clk 0:03:00.6]} 2. d4 {[%clk 0:03:02.1]}
2... g6 {[%clk 0:03:01.7]} 3. Nc3 {[%clk 0:03:02.4]} 3... c6 {[%clk 0:03:02.8]}
4. a4 {[%clk 0:03:02.6]} 4... e5 {[%clk 0:03:03.5]} 5. dxe5 {[%clk 0:03:01.4]}
5... dxe5 {[%clk 0:03:03.8]} 6. Qxd8+ {[%clk 0:03:03.3]} 6... Kxd8 {[%clk
0:03:05]} 7. Bc4 {[%clk 0:03:04.7]} 7... f6 {[%clk 0:03:05.7]} 8. a5 {[%clk
0:03:03.2]} 8... Nd7 {[%clk 0:03:05.9]} 9. Nf3 {[%clk 0:03:01.4]} 9... Bh6
{[%clk 0:03:06]} 10. Nd2 {[%clk 0:03:02]} 10... Ke7 {[%clk 0:03:00.6]} 11. b4
{[%clk 0:03:02.5]} 11... Rb8 {[%clk 0:02:55.6]} 12. Ba3 {[%clk 0:03:00.7]} 12...
Ke8 {[%clk 0:02:56.7]} 13. b5 {[%clk 0:02:59.6]} 13... Bf8 {[%clk 0:02:56.8]}
14. Ke2 {[%clk 0:02:44]} 14... Nh6 {[%clk 0:02:48.4]} 15. Rhb1 {[%clk
0:02:38.3]} 15... Bxa3 {[%clk 0:02:43.4]} 16. Rxa3 {[%clk 0:02:37.9]} 16... c5
{[%clk 0:02:44.3]} 17. b6 {[%clk 0:02:38.1]} 17... a6 {[%clk 0:02:45]} 18. Nd5
{[%clk 0:02:28.5]} 18... Nf7 {[%clk 0:02:42]} 19. Nc7+ {[%clk 0:02:29.2]} 19...
Ke7 {[%clk 0:02:42.5]} 20. Bxf7 {[%clk 0:02:30.2]} 20... Kxf7 {[%clk 0:02:42.8]}
21. Nc4 {[%clk 0:02:31]} 21... Rd8 {[%clk 0:02:33.6]} 22. Rd1 {[%clk 0:02:31.1]}
22... Rg8 {[%clk 0:02:13]} 23. Rad3 {[%clk 0:02:12.2]} 23... Nf8 {[%clk
0:02:02.4]} 24. Rd8 {[%clk 0:02:10.5]} 24... Bg4+ {[%clk 0:01:59]} 25. f3 {[%clk
0:02:08.4]} 25... Rxd8 {[%clk 0:01:59.3]} 26. Rxd8 {[%clk 0:02:08.8]} 26... Bd7
{[%clk 0:01:58.7]} 27. Nd6+ {[%clk 0:02:08]} 27... Ke7 {[%clk 0:01:53.6]} 28.
Nxb7 {[%clk 0:02:08.1]} 28... Bc6 {[%clk 0:01:45.3]} 29. Nd5+ {[%clk 0:02:03.5]}
29... Kf7 {[%clk 0:01:44.6]} 30. Nd6+ {[%clk 0:02:03.3]} 30... Kg7 {[%clk
0:01:43.8]} 31. Ne7 {[%clk 0:02:01.9]} 1-0

[Event "*** Titled Tuesday 3|2 Blitz"]
[Site "Chess.com"]
[Date "2016.07.05"]
[Round "5"]
[White "Masterbeaterr"]
[Black "pedromartinez91"]
[Result "0-1"]
[WhiteElo "2276"]
[BlackElo "2290"]
[TimeControl "180+2"]
[EndTime "11:57:47 PDT"]
[Termination "pedromartinez91 won by resignation"]

1. e4 {[%clk 0:03:01.9]} 1... e6 {[%clk 0:02:44.7]} 2. d4 {[%clk 0:03:02.1]}
2... d5 {[%clk 0:02:45]} 3. Nc3 {[%clk 0:03:02.9]} 3... Nf6 {[%clk 0:02:44.3]}
4. e5 {[%clk 0:03:01.8]} 4... Ne4 {[%clk 0:02:44]} 5. Nxe4 {[%clk 0:03:02.4]}
5... dxe4 {[%clk 0:02:44.4]} 6. Bc4 {[%clk 0:03:03.9]} 6... c5 {[%clk
0:02:44.2]} 7. d5 {[%clk 0:03:04.5]} 7... Nd7 {[%clk 0:02:33.1]} 8. dxe6 {[%clk
0:02:59.4]} 8... fxe6 {[%clk 0:02:31.8]} 9. Bxe6 {[%clk 0:02:58.6]} 9... Nxe5
{[%clk 0:02:31.5]} 10. Qxd8+ {[%clk 0:02:58]} 10... Kxd8 {[%clk 0:02:31.2]} 11.
Bg5+ {[%clk 0:02:59.7]} 11... Be7 {[%clk 0:02:31.4]} 12. O-O-O+ {[%clk
0:03:00.6]} 12... Nd3+ {[%clk 0:02:28.6]} 13. Kb1 {[%clk 0:02:47.6]} 13... Bxe6
{[%clk 0:02:18.7]} 14. Bxe7+ {[%clk 0:02:48.2]} 14... Kxe7 {[%clk 0:02:18.6]}
15. cxd3 {[%clk 0:02:50.1]} 15... exd3 {[%clk 0:02:17.8]} 16. Nf3 {[%clk
0:02:49]} 16... Kf6 {[%clk 0:02:13.8]} 17. Rhe1 {[%clk 0:02:40.6]} 17... Rhe8
{[%clk 0:02:09.2]} 18. h3 {[%clk 0:02:26.7]} 18... Bd5 {[%clk 0:01:58.8]} 19.
Nh4 {[%clk 0:02:23.2]} 19... g5 {[%clk 0:01:51.1]} 20. Nf3 {[%clk 0:02:24.3]}
20... Bxf3 {[%clk 0:01:50.9]} 21. gxf3 {[%clk 0:02:26.2]} 21... Re2 {[%clk
0:01:41.8]} 22. Rf1 {[%clk 0:02:18.4]} 22... c4 {[%clk 0:01:36]} 23. Rc1 {[%clk
0:02:19.8]} 23... b5 {[%clk 0:01:35.2]} 24. Rc3 {[%clk 0:02:06.8]} 24... Rae8
{[%clk 0:01:30.1]} 25. Kc1 {[%clk 0:02:00.6]} 25... Re1+ {[%clk 0:01:25]} 26.
Rxe1 {[%clk 0:01:59.9]} 26... Rxe1+ {[%clk 0:01:25.2]} 27. Kd2 {[%clk
0:02:01.8]} 27... Re2+ {[%clk 0:01:25.8]} 28. Kc1 {[%clk 0:02:03.6]} 28... Ke5
{[%clk 0:01:22.5]} 29. b3 {[%clk 0:02:04.9]} 29... Kd4 {[%clk 0:01:22.5]} 0-1

[Event "*** Titled Tuesday 3|2 Blitz"]
[Site "Chess.com"]
[Date "2016.07.05"]
[Round "5"]
[White "Sanan_Sjugirov"]
[Black "ZapataCharlesS"]
[Result "1-0"]
[WhiteElo "2662"]
[BlackElo "2462"]
[TimeControl "180+2"]
[EndTime "11:59:07 PDT"]
[Termination "Sanan_Sjugirov won by resignation"]

1. d4 {[%clk 0:03:01.9]} 1... d5 {[%clk 0:02:56.3]} 2. Nf3 {[%clk 0:03:02.9]}
2... Nf6 {[%clk 0:02:56.7]} 3. Bg5 {[%clk 0:03:04]} 3... e6 {[%clk 0:02:55]} 4.
e3 {[%clk 0:03:04.4]} 4... Be7 {[%clk 0:02:53.9]} 5. Nbd2 {[%clk 0:03:04.9]}
5... Nbd7 {[%clk 0:02:51.4]} 6. Bd3 {[%clk 0:03:05.1]} 6... h6 {[%clk
0:02:49.8]} 7. Bf4 {[%clk 0:03:04.3]} 7... c5 {[%clk 0:02:50.9]} 8. c3 {[%clk
0:03:05]} 8... b6 {[%clk 0:02:50.4]} 9. Qe2 {[%clk 0:03:05.6]} 9... Bb7 {[%clk
0:02:51.3]} 10. a4 {[%clk 0:03:02.6]} 10... a6 {[%clk 0:02:47]} 11. h3 {[%clk
0:02:50.3]} 11... Qc8 {[%clk 0:02:39.3]} 12. Ne5 {[%clk 0:02:47.4]} 12... Nxe5
{[%clk 0:02:37.7]} 13. Bxe5 {[%clk 0:02:48.3]} 13... O-O {[%clk 0:02:36.6]} 14.
Bc2 {[%clk 0:02:43.1]} 14... Nd7 {[%clk 0:02:35.9]} 15. Bf4 {[%clk 0:02:38.8]}
15... f5 {[%clk 0:02:36]} 16. g4 {[%clk 0:02:38.4]} 16... Nf6 {[%clk 0:02:27.7]}
17. gxf5 {[%clk 0:02:37.3]} 17... exf5 {[%clk 0:02:27.7]} 18. Rg1 {[%clk
0:02:34.8]} 18... Kh8 {[%clk 0:02:28.6]} 19. Be5 {[%clk 0:02:34]} 19... cxd4
{[%clk 0:02:20.6]} 20. exd4 {[%clk 0:02:33.5]} 20... Qe6 {[%clk 0:02:15.9]} 21.
O-O-O {[%clk 0:02:25.9]} 21... Rf7 {[%clk 0:02:17]} 22. Rg6 {[%clk 0:02:22.1]}
22... b5 {[%clk 0:02:05.8]} 23. Rdg1 {[%clk 0:02:21.7]} 23... bxa4 {[%clk
0:01:59.3]} 24. Qf3 {[%clk 0:01:44.3]} 24... a3 {[%clk 0:01:57.1]} 25. Bxf5
{[%clk 0:01:42.8]} 25... axb2+ {[%clk 0:01:56.9]} 26. Kb1 {[%clk 0:01:43]} 26...
Qc6 {[%clk 0:01:31.7]} 27. Qe3 {[%clk 0:01:31]} 27... Qa4 {[%clk 0:00:47.1]} 28.
Qxh6+ {[%clk 0:01:31.3]} 28... Kg8 {[%clk 0:00:48.6]} 29. Rxg7+ {[%clk
0:01:29.8]} 1-0

[Event "*** Titled Tuesday 3|2 Blitz"]
[Site "Chess.com"]
[Date "2016.07.05"]
[Round "5"]
[White "EltajSafarli"]
[Black "OparinGrigoriy"]
[Result "1-0"]
[WhiteElo "2758"]
[BlackElo "2643"]
[TimeControl "180+2"]
[EndTime "11:59:09 PDT"]
[Termination "EltajSafarli won by checkmate"]

1. e4 {[%clk 0:03:01.7]} 1... c5 {[%clk 0:03:01]} 2. Nf3 {[%clk 0:03:02]} 2...
d6 {[%clk 0:03:02.6]} 3. d4 {[%clk 0:03:02.4]} 3... cxd4 {[%clk 0:03:04.5]} 4.
Nxd4 {[%clk 0:03:03.8]} 4... Nf6 {[%clk 0:03:06.1]} 5. Nc3 {[%clk 0:03:05.2]}
5... a6 {[%clk 0:03:07.7]} 6. Bg5 {[%clk 0:03:06]} 6... Nbd7 {[%clk 0:03:06.6]}
7. Qe2 {[%clk 0:03:06]} 7... h6 {[%clk 0:03:04.3]} 8. Bh4 {[%clk 0:03:02.3]}
8... Qc7 {[%clk 0:03:04.9]} 9. O-O-O {[%clk 0:03:02]} 9... e6 {[%clk 0:03:04.7]}
10. f4 {[%clk 0:03:00.7]} 10... g5 {[%clk 0:02:57.7]} 11. fxg5 {[%clk
0:02:58.8]} 11... hxg5 {[%clk 0:02:59.6]} 12. Bxg5 {[%clk 0:02:56.7]} 12... Be7
{[%clk 0:02:55.3]} 13. g3 {[%clk 0:02:53.6]} 13... b5 {[%clk 0:02:55.4]} 14. Bg2
{[%clk 0:02:48.7]} 14... Bb7 {[%clk 0:02:38.8]} 15. Kb1 {[%clk 0:02:30.8]} 15...
b4 {[%clk 0:02:36.1]} 16. Nd5 {[%clk 0:02:28.7]} 16... exd5 {[%clk 0:02:36.8]}
17. exd5 {[%clk 0:02:29.2]} 17... Ne5 {[%clk 0:02:36.2]} 18. Nc6 {[%clk
0:02:28.2]} 18... Bxc6 {[%clk 0:02:22.4]} 19. dxc6 {[%clk 0:02:30.1]} 19... Nh7
{[%clk 0:02:12.2]} 20. Bf4 {[%clk 0:02:26.8]} 20... Nf8 {[%clk 0:02:13.6]} 21.
Bxe5 {[%clk 0:02:24]} 21... dxe5 {[%clk 0:02:12.5]} 22. Rd7 {[%clk 0:02:23.5]}
22... Nxd7 {[%clk 0:02:02.4]} 23. cxd7+ {[%clk 0:02:25.4]} 23... Kxd7 {[%clk
0:02:04]} 24. Qg4+ {[%clk 0:02:24.4]} 24... Kd6 {[%clk 0:02:05]} 25. Rd1+ {[%clk
0:02:14]} 25... Kc5 {[%clk 0:02:06.2]} 26. Rd7 {[%clk 0:02:10.6]} 26... Qc8
{[%clk 0:01:29.8]} 27. Bb7 {[%clk 0:02:10.6]} 27... f5 {[%clk 0:00:47.2]} 28.
Qd1 {[%clk 0:02:03.9]} 28... Qg8 {[%clk 0:00:31.8]} 29. Bxa8 {[%clk 0:01:56.6]}
29... Qxa8 {[%clk 0:00:26.9]} 30. Rxe7 {[%clk 0:01:57.6]} 30... Re8 {[%clk
0:00:28.4]} 31. Rc7+ {[%clk 0:01:53.9]} 31... Kb5 {[%clk 0:00:29.6]} 32. Qd7+
{[%clk 0:01:53.9]} 32... Ka5 {[%clk 0:00:30.4]} 33. Rc5+ {[%clk 0:01:53.8]}
33... Kb6 {[%clk 0:00:31.6]} 34. Qc7# {[%clk 0:01:55.1]} 1-0

[Event "*** Titled Tuesday 3|2 Blitz"]
[Site "Chess.com"]
[Date "2016.07.05"]
[Round "5"]
[White "Zhani-Z"]
[Black "Abrito99"]
[Result "1-0"]
[WhiteElo "2270"]
[BlackElo "2327"]
[TimeControl "180+2"]
[EndTime "11:59:10 PDT"]
[Termination "Zhani-Z won by resignation"]

1. e4 {[%clk 0:03:01.9]} 1... e6 {[%clk 0:03:00.8]} 2. d4 {[%clk 0:03:02.8]}
2... d5 {[%clk 0:03:02.1]} 3. Nd2 {[%clk 0:03:04.3]} 3... a6 {[%clk 0:03:02.9]}
4. c3 {[%clk 0:02:56.6]} 4... c5 {[%clk 0:03:02.9]} 5. dxc5 {[%clk 0:02:57.1]}
5... Bxc5 {[%clk 0:03:04.1]} 6. Bd3 {[%clk 0:02:58.2]} 6... Nf6 {[%clk
0:03:03.4]} 7. Qe2 {[%clk 0:02:59]} 7... Nc6 {[%clk 0:03:02.9]} 8. Ngf3 {[%clk
0:03:00]} 8... Bb6 {[%clk 0:02:51.5]} 9. e5 {[%clk 0:02:56.5]} 9... Nd7 {[%clk
0:02:52.1]} 10. Nb3 {[%clk 0:02:55.3]} 10... Bc7 {[%clk 0:02:48.6]} 11. Bg5
{[%clk 0:02:40.7]} 11... f6 {[%clk 0:02:29.9]} 12. exf6 {[%clk 0:02:39.9]} 12...
Nxf6 {[%clk 0:02:31.8]} 13. Nbd4 {[%clk 0:02:19.9]} 13... Qe7 {[%clk 0:02:14]}
14. Nxc6 {[%clk 0:02:03]} 14... bxc6 {[%clk 0:02:14.7]} 15. Ne5 {[%clk
0:02:04.2]} 15... O-O {[%clk 0:01:34.5]} 16. O-O {[%clk 0:01:47.2]} 16... Bb7
{[%clk 0:01:11.8]} 17. Rae1 {[%clk 0:01:43.3]} 17... Rae8 {[%clk 0:01:12.4]} 18.
f4 {[%clk 0:01:29.6]} 18... Qc5+ {[%clk 0:00:57.2]} 19. Kh1 {[%clk 0:01:30.2]}
19... Bxe5 {[%clk 0:00:57.9]} 20. fxe5 {[%clk 0:01:18.1]} 20... Nd7 {[%clk
0:00:47.5]} 21. Qh5 {[%clk 0:01:16.4]} 21... Rxf1+ {[%clk 0:00:27.4]} 22. Rxf1
{[%clk 0:01:14.2]} 22... Nf8 {[%clk 0:00:25.7]} 23. Qxe8 {[%clk 0:01:13.9]} 1-0

[Event "*** Titled Tuesday 3|2 Blitz"]
[Site "Chess.com"]
[Date "2016.07.05"]
[Round "5"]
[White "E-Shaposhnikov"]
[Black "Cayse"]
[Result "1-0"]
[WhiteElo "2658"]
[BlackElo "2567"]
[TimeControl "180+2"]
[EndTime "11:59:15 PDT"]
[Termination "E-Shaposhnikov won by checkmate"]

1. Nf3 {[%clk 0:03:01.9]} 1... Nf6 {[%clk 0:03:00.3]} 2. c4 {[%clk 0:03:02.8]}
2... e6 {[%clk 0:03:01.3]} 3. Nc3 {[%clk 0:03:03]} 3... d5 {[%clk 0:03:01.9]} 4.
d4 {[%clk 0:03:02.7]} 4... Be7 {[%clk 0:03:02.3]} 5. Bf4 {[%clk 0:03:02.2]} 5...
O-O {[%clk 0:03:02.4]} 6. e3 {[%clk 0:03:02.8]} 6... Nbd7 {[%clk 0:03:03.1]} 7.
c5 {[%clk 0:03:03]} 7... Ne4 {[%clk 0:03:00.4]} 8. Bd3 {[%clk 0:02:56.1]} 8...
f5 {[%clk 0:02:57.8]} 9. h4 {[%clk 0:02:53.2]} 9... c6 {[%clk 0:02:53]} 10. Rc1
{[%clk 0:02:38.8]} 10... b6 {[%clk 0:02:34.3]} 11. b4 {[%clk 0:02:39]} 11... a5
{[%clk 0:02:18.6]} 12. Bxe4 {[%clk 0:02:11.2]} 12... dxe4 {[%clk 0:01:44]} 13.
Ng5 {[%clk 0:02:06.6]} 13... Nf6 {[%clk 0:01:44.7]} 14. Na4 {[%clk 0:02:07.1]}
14... Nd5 {[%clk 0:01:21.2]} 15. Qh5 {[%clk 0:02:01.9]} 15... Nf6 {[%clk
0:00:49.2]} 16. Qd1 {[%clk 0:02:01.8]} 16... Nd5 {[%clk 0:00:45.8]} 17. Nxb6
{[%clk 0:01:58.1]} 17... Nxb6 {[%clk 0:00:41.6]} 18. Qh5 {[%clk 0:01:58.2]}
18... h6 {[%clk 0:00:38]} 19. Qg6 {[%clk 0:01:57.6]} 19... Bxg5 {[%clk
0:00:32.9]} 20. hxg5 {[%clk 0:01:58.2]} 20... Nd7 {[%clk 0:00:21.3]} 21. Rxh6
{[%clk 0:01:57]} 21... Qe8 {[%clk 0:00:15.9]} 22. Qh7+ {[%clk 0:01:54.7]} 22...
Kf7 {[%clk 0:00:17.2]} 23. Bd6 {[%clk 0:01:25]} 23... Rg8 {[%clk 0:00:08.4]} 24.
Qg6# {[%clk 0:01:24.7]} 1-0

[Event "*** Titled Tuesday 3|2 Blitz"]
[Site "Chess.com"]
[Date "2016.07.05"]
[Round "5"]
[White "CraiggoryC"]
[Black "alturas_pacificas"]
[Result "1-0"]
[WhiteElo "2089"]
[BlackElo "2157"]
[TimeControl "180+2"]
[EndTime "11:59:23 PDT"]
[Termination "CraiggoryC won by resignation"]

1. e4 {[%clk 0:03:01.9]} 1... g6 {[%clk 0:03:00.6]} 2. d4 {[%clk 0:03:02.8]}
2... Bg7 {[%clk 0:03:01.7]} 3. Nc3 {[%clk 0:03:04.4]} 3... d6 {[%clk 0:03:02.8]}
4. Be3 {[%clk 0:03:05.3]} 4... a6 {[%clk 0:03:04]} 5. f4 {[%clk 0:03:05.5]} 5...
b5 {[%clk 0:03:02.1]} 6. Nf3 {[%clk 0:03:05.6]} 6... Bb7 {[%clk 0:03:03.6]} 7.
Bd3 {[%clk 0:03:06.3]} 7... Nd7 {[%clk 0:03:04.9]} 8. Qd2 {[%clk 0:03:03.7]}
8... Rc8 {[%clk 0:03:05.6]} 9. O-O {[%clk 0:02:50.8]} 9... c5 {[%clk 0:03:04.3]}
10. dxc5 {[%clk 0:02:51]} 10... Nxc5 {[%clk 0:03:05.3]} 11. f5 {[%clk
0:02:43.3]} 11... Nxd3 {[%clk 0:03:03.8]} 12. cxd3 {[%clk 0:02:43.9]} 12... Nf6
{[%clk 0:03:02.2]} 13. Bh6 {[%clk 0:02:43.2]} 13... O-O {[%clk 0:02:37.5]} 14.
Qf4 {[%clk 0:02:12.2]} 14... b4 {[%clk 0:02:16.7]} 15. Nd1 {[%clk 0:02:07.2]}
15... Re8 {[%clk 0:01:36.7]} 16. Bxg7 {[%clk 0:02:06.7]} 16... Kxg7 {[%clk
0:01:37.5]} 17. Qh4 {[%clk 0:01:38.7]} 17... Rh8 {[%clk 0:01:30]} 18. Kh1 {[%clk
0:01:33.9]} 18... h6 {[%clk 0:00:52.8]} 19. fxg6 {[%clk 0:01:32.9]} 19... fxg6
{[%clk 0:00:54]} 20. Nd4 {[%clk 0:01:29.8]} 20... Qd7 {[%clk 0:00:52.2]} 21. Ne3
{[%clk 0:01:26.7]} 21... e5 {[%clk 0:00:40.5]} 22. Qxf6+ {[%clk 0:01:24.8]}
22... Kh7 {[%clk 0:00:39.9]} 23. Qf7+ {[%clk 0:01:12.3]} 23... Qxf7 {[%clk
0:00:40.8]} 24. Rxf7+ {[%clk 0:01:13.1]} 24... Kg8 {[%clk 0:00:42.5]} 25. Rxb7
{[%clk 0:01:13.1]} 25... exd4 {[%clk 0:00:42.6]} 26. Nd5 {[%clk 0:01:13.6]}
26... Rh7 {[%clk 0:00:33]} 27. Nf6+ {[%clk 0:01:14]} 27... Kf8 {[%clk 0:00:33]}
28. Nxh7+ {[%clk 0:01:14.3]} 28... Kg8 {[%clk 0:00:33.6]} 29. Nf6+ {[%clk
0:01:15.1]} 29... Kf8 {[%clk 0:00:35.3]} 30. Rf1 {[%clk 0:01:14.5]} 1-0

[Event "*** Titled Tuesday 3|2 Blitz"]
[Site "Chess.com"]
[Date "2016.07.05"]
[Round "5"]
[White "mwpchess"]
[Black "Blitzstream"]
[Result "1-0"]
[WhiteElo "2423"]
[BlackElo "2493"]
[TimeControl "180+2"]
[EndTime "11:59:43 PDT"]
[Termination "mwpchess won by resignation"]

1. e4 {[%clk 0:03:01.9]} 1... d5 {[%clk 0:02:56.8]} 2. exd5 {[%clk 0:03:01.9]}
2... Qxd5 {[%clk 0:02:58.7]} 3. Nc3 {[%clk 0:03:02.1]} 3... Qa5 {[%clk 0:02:59]}
4. d4 {[%clk 0:03:02.6]} 4... Nf6 {[%clk 0:02:59.8]} 5. Bd2 {[%clk 0:03:01.2]}
5... c6 {[%clk 0:03:00.9]} 6. Bc4 {[%clk 0:02:58.8]} 6... Bf5 {[%clk 0:03:01.5]}
7. Nf3 {[%clk 0:02:56.8]} 7... e6 {[%clk 0:03:02.5]} 8. Nd5 {[%clk 0:02:56.3]}
8... Qd8 {[%clk 0:03:02.5]} 9. Nxf6+ {[%clk 0:02:55.7]} 9... Qxf6 {[%clk
0:03:04.4]} 10. Qe2 {[%clk 0:02:54.1]} 10... Bd6 {[%clk 0:03:04.9]} 11. Bg5
{[%clk 0:02:48.3]} 11... Qg6 {[%clk 0:03:02.5]} 12. d5 {[%clk 0:02:48.4]} 12...
cxd5 {[%clk 0:01:14.3]} 13. Bxd5 {[%clk 0:02:47.2]} 13... Nc6 {[%clk 0:01:15.5]}
14. Bxc6+ {[%clk 0:02:45.9]} 14... bxc6 {[%clk 0:01:15.2]} 15. Qd2 {[%clk
0:02:46.9]} 15... Bc7 {[%clk 0:01:02.6]} 16. Nh4 {[%clk 0:02:47]} 16... Ba5
{[%clk 0:00:50.3]} 17. Qxa5 {[%clk 0:02:29.1]} 17... Qxg5 {[%clk 0:00:50.9]} 18.
Nxf5 {[%clk 0:02:29]} 18... Qxf5 {[%clk 0:00:50.9]} 19. Qxf5 {[%clk 0:02:29.1]}
19... exf5 {[%clk 0:00:52.8]} 20. O-O-O {[%clk 0:02:29.8]} 20... O-O {[%clk
0:00:41.2]} 21. Rhe1 {[%clk 0:02:27.8]} 21... Rfe8 {[%clk 0:00:39.1]} 22. Rxe8+
{[%clk 0:02:19.5]} 22... Rxe8 {[%clk 0:00:41]} 23. Rd6 {[%clk 0:02:19.6]} 23...
h5 {[%clk 0:00:38.3]} 24. Kd2 {[%clk 0:02:19.8]} 24... g5 {[%clk 0:00:36.4]} 25.
Rxc6 {[%clk 0:02:18.6]} 25... Kg7 {[%clk 0:00:38]} 26. Ra6 {[%clk 0:02:14.1]}
26... Re7 {[%clk 0:00:38.8]} 27. c4 {[%clk 0:02:13.8]} 27... g4 {[%clk
0:00:40.1]} 28. g3 {[%clk 0:02:13.2]} 28... f6 {[%clk 0:00:40.5]} 29. c5 {[%clk
0:02:06.7]} 29... Kg6 {[%clk 0:00:41.8]} 30. b4 {[%clk 0:02:04.7]} 30... Rb7
{[%clk 0:00:40.8]} 31. a3 {[%clk 0:02:04.8]} 31... Kg5 {[%clk 0:00:41.6]} 32.
Rd6 {[%clk 0:02:03.1]} 32... a5 {[%clk 0:00:35.9]} 33. c6 {[%clk 0:01:59.9]}
33... Rb6 {[%clk 0:00:32.2]} 34. Kc3 {[%clk 0:01:58.6]} 34... axb4+ {[%clk
0:00:33]} 35. axb4 {[%clk 0:01:59.1]} 35... Ra6 {[%clk 0:00:31]} 36. b5 {[%clk
0:01:59.6]} 36... Ra1 {[%clk 0:00:31.9]} 37. b6 {[%clk 0:01:58]} 37... Rb1
{[%clk 0:00:32.2]} 38. b7 {[%clk 0:01:58.6]} 38... f4 {[%clk 0:00:33]} 39. c7
{[%clk 0:01:57.4]} 39... Rc1+ {[%clk 0:00:32.3]} 40. Kd2 {[%clk 0:01:57.8]}
40... Rxc7 {[%clk 0:00:32.9]} 41. b8=Q {[%clk 0:01:59]} 41... Rc5 {[%clk
0:00:32.9]} 42. Qg8+ {[%clk 0:01:58.8]} 42... Kf5 {[%clk 0:00:34.1]} 43. Rd5+
{[%clk 0:01:59.1]} 43... Rxd5+ {[%clk 0:00:35.6]} 44. Qxd5+ {[%clk 0:01:59.2]}
44... Kg6 {[%clk 0:00:37.5]} 1-0